Cogmind - Beta 11.1 @@@ ROGUE MODE // 2022.10.09 @ 14:41:55 Player: deadnoob Result: Destroyed by D-53 Grenadier with Mini Grenade Launcher Performance ------------- Evolutions (1) 500 Regions Visited (4) 800 Robots Destroyed (60) 300 Value Destroyed (1468) 1468 Prototype IDs (1) 20 Alien Tech Used (0) 0 Bonus (-106) -106 TOTAL SCORE: 2982 Bonus ------- High Alert Combat Kills 33 Friendly Fire -139 Cogmind --------- Core Integrity 0/400 Matter 87/300 Energy 59/100 System Corruption 1% Temperature Cool (0) Movement Treading (240) Ox1 Location -9/Mines Parts ------- > --- POWER (1) -------- (None) > --- PROPULSION (3) --- Light Treads Light Treads Light Treads > --- UTILITY (3) ------ Huge Storage Unit > --- WEAPON (2) ------- (None) > --- INVENTORY (25) --- Light Nuclear Core Improved Heat Sink Huge Storage Unit Improved Utility Shielding Improved Utility Shielding Light Armor Plating Hardened Light Armor Plating Hardened Light Armor Plating Hardened Light Armor Plating System Shield System Shield System Shield Improved Medium Laser Improved Medium Laser Improved Medium Laser Autogun Autogun Datajack Heavy Flail Peak State ------------ > --- POWER ------------ Improved Ion Engine > --- PROPULSION ------- Light Treads Improved Treads Wheel > --- UTILITY ---------- Cooling System Huge Storage Unit Light Armor Plating > --- WEAPON ----------- Improved Medium Laser Autogun > --- INVENTORY -------- Light Ion Engine Light Treads Light Treads Light Treads Wheel Improved Heat Sink Huge Storage Unit Improved Utility Shielding Improved Utility Shielding Light Armor Plating Hardened Light Armor Plating Hardened Light Armor Plating Hardened Light Armor Plating System Shield System Shield System Shield Improved Medium Laser Improved Medium Laser Heavy Assault Rifle Autogun Assault Cannon Grenade Launcher Grenade Launcher Datajack Heavy Flail [Rating: 20] Favorites ----------- Power Light Ion Engine Engine Light Ion Engine Propulsion Light Treads Treads Light Treads Leg Aluminum Leg Wheel Wheel Utility Huge Storage Unit Device Cooling System Storage Huge Storage Unit Processor Melee Analysis Suite Protection Hardened Light Armor Plating Weapon Assault Rifle Energy Gun Improved Medium Laser Ballistic Gun Assault Rifle Ballistic Cannon Assault Cannon Launcher Grenade Launcher Build | -11 -10 -10 -9 -9 ------- Run | Scr Mat Min Mat Min Slots Evolved 2 | . . . 2 . Power . | . . . . . Propulsion 1 | . . . 1 . Utility 1 | . . . 1 . Weapon . | . . . . . Parts Attached 69 | . 14 9 38 8 Power 3 | . . 1 2 . Engine 3 | . . 1 2 . Core . | . . . . . Reactor . | . . . . . Propulsion 25 | . 5 2 14 4 Treads 21 | . 5 1 12 3 Leg . | . . . . . Wheel 4 | . . 1 2 1 Hover . | . . . . . Flight . | . . . . . Utility 15 | . 4 2 9 . Device 5 | . 1 2 2 . Storage 3 | . 1 . 2 . Processor 1 | . . . 1 . Hackware . | . . . . . Protection 6 | . 2 . 4 . Artifact . | . . . . . Weapon 26 | . 5 4 13 4 Energy Gun 2 | . . . 2 . Energy Cannon . | . . . . . Ballistic Gun 14 | . 4 2 6 2 Ballistic Cannon 3 | . . . 3 . Launcher 7 | . 1 2 2 2 Special Weapon . | . . . . . Impact Weapon . | . . . . . Slashing Weapon . | . . . . . Piercing Weapon . | . . . . . Special Melee Weapon . | . . . . . Unidentified Prototypes 1 | . . . 1 . Parts Lost 20 | . 1 4 4 11 Power 4 | . . 1 2 1 Propulsion 7 | . . 1 2 4 Utility 4 | . 1 1 . 2 Weapon 5 | . . 1 . 4 Highest Loss Streak 10 | . 1 2 1 10 To Critical Strikes . | . . . . . Average Slot Usage (%) 96 | . 97 99 95 86 Engine 11 | . 14 13 10 8 Treads 24 | . 27 27 21 20 Wheel 4 | . . . 8 9 Device 7 | . 2 11 8 10 Storage 12 | . 14 14 11 11 Protection 9 | . 10 1 12 8 Energy Gun 1 | . . . 2 7 Ballistic Gun 18 | . 24 27 11 11 Ballistic Cannon 3 | . . . 7 . Launcher 1 | . 3 . . 2 Naked Turns . | . . . . . Heaviest Build 105 | 12 28 30 105 98 Greatest Support 60 | 20 40 40 43 60 Greatest Overweight (x) 10 | . . 2 10 9 Average Overweight (x) 2 | . . . 6 7 Largest Inventory Capacity 25 | . 15 15 25 25 Average Capacity 18 | . 10 15 24 25 Most Carried 25 | . 9 14 25 25 Average Carried 14 | . 7 11 20 23 Final Capacity 25 | 8 15 15 25 25 Final Carried 25 | 6 9 11 25 19 Class Distribution -------------------- 83% | Mutant 16% | Scavenger-Mutant Dominant Class ---------------- Mutant | -10/Materials Mutant | -10/Mines Mutant | -9/Materials Scavenger-Mutant | -9/Mines Resources | -11 -10 -10 -9 -9 ----------- Run | Scr Mat Min Mat Min Matter Collected 1637 | 200 243 329 727 138 Remotely . | . . . . . Salvage Created 1884 | . 203 428 1010 243 Parts 137 | . 20 27 82 8 Haulers Intercepted 2 | . . . 2 . Recyclers Shooed 1 | . . . 1 . Parts Field Recycled . | . . . . . Retrieved Matter . | . . . . . Parts Self-Destructed . | . . . . . Prevented . | . . . . . Kills | -11 -10 -10 -9 -9 ------- Run | Scr Mat Min Mat Min Combat Hostiles Destroyed 64 | . 10 12 24 18 Guns 25 | . 4 6 10 5 Cannons 8 | . . . 8 . AOE 31 | . 6 6 6 13 Classes Destroyed 11 | . 2 3 4 2 Worker 2 | . . 1 1 . Builder 1 | . . 1 . . Hauler 2 | . . . 2 . Recycler 3 | . . 2 1 . Mechanic 1 | . . . 1 . Watcher 1 | . . . 1 . Swarmer 18 | . 6 6 6 . Grunt 23 | . 4 6 10 3 Sentry 8 | . . . 8 . Assembled 15 | . . . . 15 Guerrilla 1 | . . . . 1 Best Kill Streak 15 | . 6 8 6 15 Combat Bots Only 15 | . 6 5 6 15 Max Kills in Single Turn 8 | . 2 3 4 8 Gunslinging . | . . . . . Exploded 8 | . 2 1 4 8 Melee . | . . . . . Uniques/NPCs Destroyed . | . . . . . Combat | -11 -10 -10 -9 -9 -------- Run | Scr Mat Min Mat Min Damage Taken 3296 | . 319 718 991 1268 Core 603 | . 55 135 172 241 Absorbed by Shields . | . . . . . Redirected to Shielding 51 | . 17 34 . . Regen/Repaired (Parts) 172 | . 104 . 68 . Core Remaining (%) 62 | 100 . 24 . . Volleys Fired 148 | . 30 34 68 16 Largest 2 | . 2 2 2 2 Hottest 88 | . 40 40 88 79 Shots Fired 280 | . 56 60 134 30 Gun 202 | . 52 52 75 23 Cannon 56 | . . . 56 . Launcher 22 | . 4 8 3 7 Special . | . . . . . Kinetic 240 | . 52 52 120 16 Thermal 18 | . . . 11 7 Explosive 22 | . 4 8 3 7 Electromagnetic . | . . . . . Robot Hit Streak 15 | . 9 15 14 9 Robot Miss Streak 8 | . 4 2 8 4 Penetration Max . | . . . . . Secondary Targets 3 | . . 1 1 1 Max Gunslinging Chain 1 | . . 1 1 1 Shots Hit Robots 174 | . 32 41 82 19 Core Hits 118 | . 16 27 42 33 Critical Kills 1 | . . . . 1 Critical Parts Destroyed 1 | . . 1 . . Critical Strikes 6 | . . 1 4 1 Destroy 2 | . . 1 . 1 Blast 4 | . . . 4 . Melee Attacks . | . . . . . Impact . | . . . . . Slashing . | . . . . . Piercing . | . . . . . Sneak Attacks . | . . . . . Combat Hostiles . | . . . . . Follow-up Attacks . | . . . . . Damage Inflicted 4745 | . 728 994 1956 1067 Guns 1972 | . 399 523 784 266 Cannons 692 | . . . 692 . Explosions 2031 | . 329 469 432 801 Melee . | . . . . . Ramming 50 | . . 2 48 . Kinetic 2430 | . 399 523 1366 142 Thermal 234 | . . . 110 124 Explosive 2031 | . 329 469 432 801 Electromagnetic . | . . . . . Impact . | . . . . . Slashing . | . . . . . Piercing . | . . . . . Highest Corruption 1 | . . . 1 1 Average Corruption 1 | . . . 1 1 Corruption Purged . | . . . . . Corruption Blocked . | . . . . . Effects 9 | . . . 8 1 Message Errors 2 | . . . 2 . Matter Fused 2 | . . . 2 . Heat Flow Errors 3 | . . . 2 1 Misfires 1 | . . . 1 . Alerts 1 | . . . 1 . Overload Shots . | . . . . . Overflow Damage 30 | . . . 7 23 Projectiles . | . . . . . Explosions 30 | . . . 7 23 Melee . | . . . . . Knockbacks 3 | . . . 3 . Impact . | . . . . . Kinetic 2 | . . . 2 . Secondary 1 | . . . 1 . Self-Inflicted Damage 234 | . . 61 81 92 Shots 8 | . . 3 2 3 Rammed 6 | . . 1 5 . Targets Rammed 6 | . . 1 5 . Kicked . | . . . . . Crushed . | . . . . . Highest Temperature 228 | . 2 11 228 219 Average Temperature 66 | . 2 4 77 65 Received Heat Transfer 1096 | . 126 348 363 259 Siege Activations . | . . . . . Robots Corrupted . | . . . . . Combat Hostiles . | . . . . . Parts Fried . | . . . . . Impact Corruptions . | . . . . . Robots Melted . | . . . . . Combat Hostiles . | . . . . . Parts Melted 1 | . . . 1 . Heat Transferred 481 | . . . 222 259 Parts Sabotaged . | . . . . . Parts Stolen . | . . . . . Parts Stripped . | . . . . . Power Chain Reactions . | . . . . . Missiles Intercepted . | . . . . . Alert | -11 -10 -10 -9 -9 ------- Run | Scr Mat Min Mat Min Peak Influence 514 | . 323 286 514 272 Initial 179 | . . 49 88 179 Average 200 | . 181 212 205 222 Maximum Alert Level 2 | . 1 1 2 1 Low Security (%) 51 | . 55 29 59 32 Level 1 40 | . 44 70 22 67 Level 2 8 | . . . 18 . Level 3 . | . . . . . Level 4 . | . . . . . Level 5 . | . . . . . High Security . | . . . . . Max Security . | . . . . . Squads Dispatched 8 | . 3 . 5 . Investigation 4 | . 1 . 3 . Extermination . | . . . . . Reinforcement 4 | . 2 . 2 . Assault . | . . . . . Garrison . | . . . . . Intercept . | . . . . . Searches Triggered . | . . . . . Construction Impeded . | . . . . . Haulers Reinforced . | . . . . . Active Scanning Responses . | . . . . . Cargo Convoy Interrupts . | . . . . . Stealth | -11 -10 -10 -9 -9 --------- Run | Scr Mat Min Mat Min Distress Signals 4 | . 1 . 3 . Communications Jammed . | . . . . . Distress Signals . | . . . . . Times Spotted 103 | . 21 12 45 25 Peak Tracking Total 20 | . 5 3 7 20 Tactical Retreats 4 | . 2 . 2 . Traps | -11 -10 -10 -9 -9 ------- Run | Scr Mat Min Mat Min Traps Triggered . | . . . . . Indirectly . | . . . . . Trap Hack Attempts . | . . . . . Triggered . | . . . . . Disarmed . | . . . . . Reprogrammed . | . . . . . Reused . | . . . . . Traps Extracted . | . . . . . Installed . | . . . . . Triggered . | . . . . . Most Traps Carried 3 | . . 3 3 . Machines | -11 -10 -10 -9 -9 ---------- Run | Scr Mat Min Mat Min Machines Disabled 1 | . . . 1 . Max in Single Turn 1 | . . . 1 . Machines Sabotaged . | . . . . . Garrisons Compromised . | . . . . . Overloaded Fab Kills . | . . . . . Hacking | -11 -10 -10 -9 -9 --------- Run | Scr Mat Min Mat Min Machines Accessed 15 | . 7 1 7 . Terminals 10 | . 4 1 5 . Fabricators . | . . . . . Repair Stations 2 | . 1 . 1 . Recycling Units 3 | . 2 . 1 . Scanalyzers . | . . . . . Garrison Access . | . . . . . Total Hacks 44 | . 21 4 19 . Successful 18 | . 11 . 7 . Failed 26 | . 10 4 12 . Catastrophic 1 | . 1 . . . Database Lockouts . | . . . . . Manual 32 | . 12 4 16 . Terminals 28 | . 11 4 13 . Fabricators . | . . . . . Repair Stations 10 | . 6 . 4 . Recycling Units 6 | . 4 . 2 . Scanalyzers . | . . . . . Garrison Access . | . . . . . Terminal Hacks 5 | . 1 . 4 . Robot Analysis 3 | . . . 3 . Branch Access Points 1 | . . . 1 . Locate Traps 1 | . 1 . . . Fabricator Hacks . | . . . . . Repair Station Hacks 8 | . 6 . 2 . Scan Component 4 | . 3 . 1 . Repair 4 | . 3 . 1 . Recycling Unit Hacks . | . . . . . Scanalyzer . | . . . . . Garrison Access Hacks . | . . . . . Unauthorized Hacks 5 | . 4 . 1 . Terminals 2 | . 2 . . . Track 1 | . 1 . . . Botnet 1 | . 1 . . . Fabricators . | . . . . . Repair Stations . | . . . . . Recycling Units 3 | . 2 . 1 . Mask 2 | . 1 . 1 . Tunnel 1 | . 1 . . . Scanalyzers . | . . . . . Garrison Access . | . . . . . Data Cores Recovered . | . . . . . Used . | . . . . . Hacking Detections 13 | . 6 1 6 . Full Trace Events 7 | . 2 1 4 . Feedback Events 1 | . . . 1 . Corruption 1 | . . . 1 . Feedback Blocked . | . . . . . Robot Schematics Acquired . | . . . . . Robots Built . | . . . . . Authchips . | . . . . . Time . | . . . . . Total Robot Build Rating . | . . . . . Part Schematics Acquired . | . . . . . Parts Built . | . . . . . Authchips . | . . . . . Time . | . . . . . Total Part Build Rating . | . . . . . Parts Repaired 4 | . 3 . 1 . Time 104 | . 78 . 26 . Parts Recycled . | . . . . . Recycled Matter . | . . . . . Retrieved Matter . | . . . . . Retrieved Components . | . . . . . Parts Scanalyzed . | . . . . . Part Schematics Acquired . | . . . . . Parts Damaged . | . . . . . Bothacking | -11 -10 -10 -9 -9 ------------ Run | Scr Mat Min Mat Min Used RIF Installer . | . . . . . Robots Hacked . | . . . . . Non-combat . | . . . . . Combat . | . . . . . Robot Hacks Applied . | . . . . . Relay Couplers Released . | . . . . . Fabnet Peak Effective % . | . . . . . Robots Rewired . | . . . . . Allies Hacked . | . . . . . Hacks Repelled . | . . . . . Allies | -11 -10 -10 -9 -9 -------- Run | Scr Mat Min Mat Min Total Allies . | . . . . . Largest Group . | . . . . . Highest-Rated Group . | . . . . . Highest-Rated Ally . | . . . . . Total Orders . | . . . . . Ally Attacks . | . . . . . Total Damage . | . . . . . Kills . | . . . . . Allies Corrupted . | . . . . . Allies Melted . | . . . . . Intel | -11 -10 -10 -9 -9 ------- Run | Scr Mat Min Mat Min Robot Analysis Total 3 | . . . 3 . Derelict Logs Recovered 1 | . . 1 . . Drone Launches . | . . . . . Drone Recoveries . | . . . . . Exploration | -11 -10 -10 -9 -9 ------------- Run | Scr Mat Min Mat Min Turns Passed 3503 | . 1029 724 1638 112 Spaces Moved 1458 | 1 516 379 538 24 Core . | . . . . . Treads 1087 | . 502 369 213 3 Legs 15 | 1 14 . . . Wheels 356 | . . 10 325 21 Hover . | . . . . . Flight . | . . . . . Fastest Speed 110 | 120 120 110 160 200 Average Speed 190 | 120 158 158 242 217 Slowest Speed 320 | 120 160 160 320 240 Overloaded Moves . | . . . . . Propulsion Burnouts . | . . . . . Robots Hopped . | . . . . . Cave-ins Triggered . | . . . . . Exploration Rate (%) 45 | 2 88 71 52 13 Regions Visited 4 Branch Regions 2 Pre-discovered Areas 2 | . 1 1 . . Known Exits Taken 1 | . . . 1 . Unknown Exits Taken 3 | 1 1 1 . . Scrap Searched 1 | . . 1 . . Spaces Dug 24 | . 10 10 4 . Terrain Destroyed 114 | . 26 43 32 13 Melee . | . . . . . Projectile 12 | . . . 12 . AOE 102 | . 26 43 20 13 Terrain Rammed . | . . . . . Walls Destroyed . | . . . . . Machines Disabled . | . . . . . Actions | -11 -10 -10 -9 -9 --------- Run | Scr Mat Min Mat Min Total 1904 | . 667 438 744 55 Wait 152 | . 95 12 40 5 Move 1454 | . 515 378 537 24 Hop . | . . . . . Pick Up 38 | . 6 4 27 1 Fast Attach 12 | . 3 1 8 . Attach 14 | . 1 3 4 6 Detach 6 | . 1 . 5 . Swap 43 | . 10 5 26 2 Drop 31 | . 6 . 24 1 Fire 148 | . 30 34 68 16 Melee . | . . . . . Ram 1 | . . . 1 . Kick . | . . . . . Crush 5 | . . 1 4 . Escape Stasis . | . . . . . Rewire . | . . . . . Trap . | . . . . . Miscellaneous . | . . . . . Route ------- -11/Scrapyard -10/Materials (discovered 2 exits: *Mat / *Min) -10/Mines (discovered 3 exits: *Mat x2 / [*Exi]) -9/Materials (discovered 2 exits: *Min x2) -9/Mines History --------- Turn | Location | Event 1 | -11/Scrapyard | Discovered new exit (range 0) 1 | -11/Scrapyard | Entered Materials 311 | -10/Materials | Build established: Mutant 455 | -10/Materials | Discovered new exit (range 11) 860 | -10/Materials | Discovered new exit (range 8) 935 | -10/Materials | Repaired Lgt. Treads 963 | -10/Materials | Repaired Grenade Launcher 989 | -10/Materials | Repaired Assault Rifle 1030 | -10/Materials | Entered Mines 1050 | -10/Mines | Discovered new exit (range 12) 1267 | -10/Mines | Found a hidden stash of uninstalled traps 1467 | -10/Mines | Deemed a non-threat by the Exiles lab entrance 1467 | -10/Mines | Discovered new exit (range 5) 1531 | -10/Mines | Core integrity fell below 50% 1736 | -10/Mines | Discovered new exit (range 12) 1754 | -10/Mines | Entered Materials 1754 | -9/Materials | Evolved 2 slots: Propulsion x1, Utility x1 2765 | -9/Materials | Repaired Lgt. Treads 3222 | -9/Materials | Identified exit to Mines 3346 | -9/Materials | Build established: Scavenger-Mutant 3392 | -9/Materials | Entered Mines 3402 | -9/Mines | Core integrity fell below 50% 3461 | -9/Mines | Assembled infested the area 3466 | -9/Mines | Assisted by a Guerilla fighting off Assembled 3476 | -9/Mines | Core integrity fell below 20% 3504 | -9/Mines | Destroyed by D-53 Grenadier with Mini Grenade Launcher Last Messages --------------- 03471_ Lgt. Armor Plating destroyed. 03471_ Destroyed Lgt. Armor Plating. 03474_ as-78987 destroyed. 03474_ as-58491 destroyed. 03474_ Grenade Launcher destroyed. 03476_ Imp. Treads destroyed. 03476_ Grenade Launcher destroyed. 03480_ as-79638 destroyed. 03487_ Wheel destroyed. 03490_ R-06 Scavenger destroyed. 03491_ Hvy. Assault Rifle destroyed. 03492_ The unstable cave ceiling collapses. 03493_ Cooling System destroyed. 03494_ as-29640 suffers critical hit (Destroy). 03494_ as-29640 destroyed. 03497_ C-30 ARC bursts open, deploying its payload. 03497_ D-53 Grenadier unfolds itself. 03499_ Hvy. Assault Rifle destroyed. 03502_ as-93084 destroyed. 03502_ as-83942 destroyed. Map ----- +----------------------------------------------------+ | ?????????????????????????????????????????????????? | | ?????????????????????????????????????????????????? | | ?????????????????????????????????????????????????? | | ?????????????????????????????????????????????????? | | ?????????????????????????????????????????????????? | | ?????????????????????????????????????????????????? | | ?????????????????????????????????????????????????? | | ?????????????????????????????????????????????????? | | ?????????????????????????????????????????????????? | | ?????????????????????????????????????????????????? | | ?????????????????????????????????????????????????? | | ?????????????????????????????????????????????????? | | ?????????????????????????????????????????????????? | | ?????????????????????????????????????????????????? | | ?????????????????????????????????????????????????? | | ?????????????????????????????????????????????????? | | ?????????????????????????????????????????????????? | | ?????????????????????????????????????????????????? | | ?????????????????????????????????????????????????? | | ????????????##########???????????????????????????? | | ????????????# #???????????????????????????? | | ????????????# #??????##????###????????????? | | ????????????# #????## ##?? % ?????????????? | | ????????????# ##### ## ###????????????? | | ????????????# """ [ # ###??????????? | | ????????????# """ ## =@ = d #?????????? | | ????????????# """ # =* =% d #?????????? | | ????????????# # ! #??????????? | | ????????????############### % #????????? | | ??????????????????????????# %= ????????? | | ?????????????????????????# #???????? | | ???????????????????????? #???????? | | ??????????????????????? % #???????? | | ??????????????????????###### #??????? | | ???????????????????????????## % ??????? | | ????????????????????????????# ???????? | | ????????????????????????????? # ???????? | | ????????????????????????????? ????????? | | ????????????????????????????? ????????? | | ????????????????????????????? ? ?????????? | | ????????????????????????????? ## ????????????? | | ????????????????????????????? ####??????????????? | | ?????????????????????????????###?????????????????? | | ?????????????????????????????????????????????????? | | ?????????????????????????????????????????????????? | | ?????????????????????????????????????????????????? | | ?????????????????????????????????????????????????? | | | | | | | +----------------------------------------------------+ Best States ------------- Heat Dissipation 50 Energy Generation 12 Energy Capacity 265 Matter Stores 300 Matter Capacity 300 Sight Range 16 Terrain Scan Density 10 Armor Coverage 300 Propulsion Shielding 33 Evasion (%) 45 Melee Accuracy 5 Recoil Reduction 3 Item Schematics ----------------- None Robot Schematics ------------------ None Fabricated ------------ Nothing Alien Tech Used ----------------- None Achievements -------------- None Challenges ------------ None Game ------ Seed SkeletonRagnarokChronowheel Manual? 0 Play Time 00:24:33 Cumulative 135.3 hours Start 2022.10.09 @ 14:19:05 End 2022.10.09 @ 14:41:55 Sessions 1 Manual Loads 0 Difficulty Rogue Special Mode None Game No. 161 Rogue 161 Adventurer 0 Explorer 0 Win Type - Total 1 Types 1/0/0/0/0/0/0/0/0 Lore% 73 Gallery% 73 Achievement% 57 Wizard Run 0 Options --------- ASCII 0 Keyboard 0 Movement Numpad Keybinds 0 Fullscreen 2 Font 18/SmallcapsGlow Map View 76x50 Tactical HUD 1 Map Filters NONE Filters NONE Steam 1 RUN: c9197ec2-cadb-4f8a-83d2-1de4d054e975